bitfinex/quotes_BTCUSD_20250328
["timestamp","ask_amount","ask_price","bid_price","bid_amount"]
[1743169748902,0.076,85378.0,85375.0,0.234258]
[1743169749080,0.076,85378.0,85376.0,0.373856]
[1743169749462,0.321966,85378.0,85374.0,0.00030194]
[1743169749668,0.245969,85376.0,85375.0,0.1396]
[1743169750292,0.321966,85378.0,85377.0,0.234255]
[1743169750293,0.076,85378.0,85377.0,0.234255]
[1743169750490,0.092811,85385.0,85377.0,0.011712]
[1743169750759,0.234235,85384.0,85379.0,0.234248]
[1743169750909,0.0003382,85386.0,85384.0,0.234235]
[1743169751114,0.0003382,85386.0,85385.0,0.011711]
[1743169751320,0.0003382,85386.0,85383.0,0.234237]
[1743169751514,0.2345682,85386.0,85383.0,0.245948]
[1743169751743,0.0003382,85386.0,85384.0,0.245945]
[1743169752154,0.0003382,85386.0,85383.0,0.245948]
[1743169752468,0.0003382,85386.0,85385.0,0.011711]
[1743169754256,0.0003382,85386.0,85385.0,0.151311]
[1743169754873,0.0003382,85386.0,85385.0,0.154311]
[1743169756431,0.0003382,85386.0,85385.0,0.388544]
[1743169756664,0.0003382,85386.0,85385.0,0.50280164]
[1743169756871,0.0003382,85386.0,85385.0,0.53312734]
[1743169757241,2e-07,85386.0,85385.0,0.53312734]
[1743169757647,2e-07,85386.0,85385.0,0.83312734]
[1743169757853,2e-07,85386.0,85385.0,0.83212734]
[1743169758249,2e-07,85386.0,85385.0,0.83412734]
[1743169758450,2e-07,85386.0,85385.0,0.83212734]
[1743169758649,2e-07,85386.0,85385.0,0.83012734]
[1743169758854,2e-07,85386.0,85385.0,0.83212734]
[1743169759052,2e-07,85386.0,85385.0,0.83712734]
[1743169759290,2e-07,85386.0,85385.0,0.83512734]
[1743169759583,2e-07,85386.0,85385.0,0.84029644]
[1743169760750,2e-07,85386.0,85385.0,0.83529644]
[1743169760963,2e-07,85386.0,85385.0,0.37037074]
[1743169761162,2e-07,85386.0,85385.0,0.1497291]
[1743169761427,2e-07,85386.0,85385.0,0.1614401]
[1743169761631,2e-07,85386.0,85385.0,0.1497291]
[1743169761854,2e-07,85386.0,85385.0,0.1614401]
[1743169762002,2e-07,85386.0,85385.0,0.1637821]
[1743169762205,2e-07,85386.0,85385.0,0.1514401]
[1743169762410,2e-07,85386.0,85385.0,0.3856731]
[1743169762587,2e-07,85386.0,85385.0,0.3916731]
[1743169762786,2e-07,85386.0,85385.0,0.2521131]
[1743169763024,2e-07,85386.0,85385.0,0.3916731]
[1743169766329,2e-07,85386.0,85385.0,0.50593074]
[1743169767644,2e-07,85386.0,85385.0,0.50293074]
[1743169767946,2e-07,85386.0,85385.0,0.49993074]
[1743169768193,2e-07,85386.0,85385.0,0.3946731]
[1743169768692,2e-07,85386.0,85385.0,0.2551131]
[1743169769027,2e-07,85386.0,85385.0,0.3946731]
[1743169770905,2e-07,85386.0,85385.0,0.3896731]
[1743169771342,2e-07,85386.0,85385.0,0.3926731]
[1743169771691,2e-07,85386.0,85385.0,0.3886731]
[1743169771891,2e-07,85386.0,85385.0,0.3916731]
[1743169774566,2e-07,85386.0,85385.0,0.50593074]
[1743169774977,2e-07,85386.0,85385.0,0.2521131]
[1743169775149,2e-07,85386.0,85385.0,0.3916731]
[1743169775587,2e-07,85386.0,85385.0,0.50293074]
[1743169775837,2e-07,85386.0,85385.0,0.36437074]
[1743169776036,2e-07,85386.0,85385.0,0.2501131]
[1743169776240,2e-07,85386.0,85385.0,0.3936731]
[1743169776458,2e-07,85386.0,85385.0,0.3896731]
[1743169776657,2e-07,85386.0,85385.0,0.3779621]
[1743169776865,0.3248412,85386.0,85385.0,0.0041691]
[1743169777116,0.43909884,85386.0,85385.0,0.0041691]
[1743169777320,0.4499089,85386.0,85385.0,0.0041691]
[1743169777935,0.19315784,85386.0,85385.0,0.2384021]
[1743169778147,0.0789002,85386.0,85385.0,0.2384021]
[1743169778356,0.0789002,85386.0,85385.0,0.2424021]
[1743169778558,0.0789002,85386.0,85385.0,0.0041691]
[1743169778706,0.0789002,85386.0,85385.0,0.2344021]
[1743169778916,0.0789002,85386.0,85385.0,0.0001691]
[1743169779267,0.3248412,85386.0,85385.0,0.0001691]
[1743169779497,0.3131302,85386.0,85385.0,0.0001691]
[1743169779881,0.0789002,85386.0,85385.0,0.0001691]
[1743169780174,0.3131302,85386.0,85385.0,0.0001691]
[1743169780780,0.0789002,85386.0,85385.0,0.0001691]
[1743169780976,0.0789002,85386.0,85385.0,0.2344021]
[1743169781415,2e-07,85386.0,85385.0,0.0001691]
[1743169781595,0.0117112,85386.0,85385.0,0.0001691]
[1743169781794,0.2459412,85386.0,85385.0,0.0001691]
[1743169782777,2e-07,85386.0,85385.0,0.0001691]
[1743169782979,0.2459412,85386.0,85385.0,0.0001691]
[1743169783880,0.36019884,85386.0,85385.0,0.0001691]
[1743169784539,0.36019884,85386.0,85385.0,1e-07]
[1743169784540,0.82777568,85386.0,85385.0,1e-07]
[1743169784881,0.82777568,85386.0,85341.0,0.011717]
[1743169784882,0.673773,85375.0,85352.0,0.13956]
[1743169784998,0.78803064,85375.0,85352.0,0.13956]
[1743169785200,0.78803064,85375.0,85354.0,0.234317]
[1743169785857,0.78803064,85375.0,85353.0,0.23432]
[1743169786465,0.78803064,85375.0,85352.0,0.373883]
[1743169786639,0.78803064,85375.0,85352.0,0.13956]
[1743169787040,0.78803064,85375.0,85360.0,0.2344701]
[1743169787282,0.78803064,85375.0,85363.0,0.234293]
[1743169787452,0.78803064,85375.0,85360.0,0.0001691]
[1743169788047,0.79003064,85375.0,85360.0,0.0001691]
[1743169790112,0.81348542,85375.0,85360.0,0.0001691]
[1743169790722,0.81348542,85375.0,85360.0,0.2344681]
[1743169791177,0.81348542,85375.0,85360.0,0.0001691]
[1743169791603,0.92774306,85375.0,85360.0,0.0001691]
[1743169793132,1.35982349,85375.0,85374.0,9.4e-07]
[1743169793550,1.36482349,85375.0,85374.0,9.4e-07]
[1743169794180,1.36282349,85375.0,85374.0,9.4e-07]
[1743169794543,1.36782349,85375.0,85374.0,0.00100094]
[1743169794865,1.36282349,85375.0,85374.0,0.00100094]
[1743169795062,1.24856585,85375.0,85374.0,0.00100094]
[1743169795266,1.234025,85375.0,85374.0,0.00100094]
[1743169795456,1.239025,85375.0,85374.0,0.00100094]
[1743169798714,0.889125,85375.0,85374.0,0.00100094]
[1743169798930,1.189125,85375.0,85374.0,0.00100094]
[1743169800663,1.20366585,85375.0,85374.0,9.4e-07]
[1743169800863,1.25066585,85375.0,85374.0,9.4e-07]
[1743169801067,1.39022585,85375.0,85374.0,9.4e-07]
[1743169801266,0.373013,85361.0,85360.0,4e-08]
[1743169801423,1.21935107,85361.0,85360.0,0.00013289]
[1743169801643,1.20481022,85361.0,85360.0,0.00013289]
[1743169802854,1.21581022,85361.0,85360.0,0.00113289]
[1743169804293,0.79827064,85361.0,85360.0,0.00113289]
[1743169804813,0.49827064,85361.0,85360.0,0.00113289]
[1743169805022,0.79827064,85361.0,85360.0,0.00113289]
[1743169805221,0.91252828,85361.0,85360.0,0.00113289]
[1743169806180,0.2459734,85333.0,85319.0,0.0477]
[1743169806378,0.2459734,85333.0,85302.0,0.55756]
[1743169806379,0.36023104,85333.0,85332.0,0.00030215]
[1743169806587,0.66023104,85333.0,85332.0,0.00030215]
[1743169806795,0.78569203,85333.0,85332.0,0.00030215]
[1743169806995,0.79437838,85333.0,85332.0,0.00030215]
[1743169807605,0.79537838,85333.0,85332.0,0.00030215]
[1743169807823,0.67143439,85333.0,85332.0,0.00030215]
[1743169807995,0.67243439,85333.0,85332.0,0.00030215]
[1743169808363,0.67443439,85333.0,85332.0,0.00030215]
[1743169808570,0.11725764,85333.0,85332.0,0.23468015]
[1743169808799,0.006,85333.0,85332.0,0.23468015]
[1743169808999,0.006,85333.0,85332.0,0.00030215]
[1743169809294,0.006,85333.0,85332.0,0.23468015]
[1743169810088,0.003,85333.0,85332.0,0.23468015]
[1743169810450,0.003,85333.0,85332.0,0.24639815]
[1743169810611,0.003,85333.0,85332.0,0.23468015]
[1743169810821,0.003,85333.0,85332.0,0.24639815]
[1743169811271,0.011718,85338.0,85332.0,0.23468015]
[1743169811579,0.234375,85333.0,85332.0,0.00030215]
[1743169811783,0.001,85333.0,85332.0,0.00030215]
[1743169811985,0.001,85333.0,85332.0,0.23468015]
[1743169812188,0.234363,85338.0,85334.0,0.23437]
[1743169812539,0.002,85338.0,85337.0,0.246082]
[1743169812738,0.011718,85335.0,85332.0,0.00030215]
[1743169812940,0.246093,85333.0,85332.0,0.00030215]
[1743169813225,0.36035064,85333.0,85332.0,0.00030215]
[1743169814397,0.66923815,85333.0,85332.0,0.00030215]
[1743169814822,0.66135064,85333.0,85332.0,0.00030215]
[1743169814984,0.001,85333.0,85332.0,0.00030215]
[1743169815183,0.246091,85334.0,85332.0,0.00030215]
[1743169815407,0.234379,85332.0,85328.0,0.234386]
[1743169815748,0.003,85333.0,85329.0,0.234386]
[1743169815968,0.011718,85332.0,85328.0,0.00013297]
[1743169816179,0.246103,85331.0,85328.0,0.00013297]
[1743169816370,0.001,85333.0,85328.0,0.00013297]
[1743169816572,0.011718,85333.0,85328.0,0.00013297]
[1743169816712,0.234386,85329.0,85328.0,0.00013297]
[1743169816915,0.246105,85329.0,85328.0,0.00013297]
[1743169817110,0.2461,85331.0,85328.0,0.00013297]
[1743169817311,0.234384,85330.0,85328.0,0.00013297]
[1743169817723,0.234386,85329.0,85328.0,0.00013297]
[1743169817924,0.011718,85333.0,85328.0,0.00013297]
[1743169817925,0.234378,85332.0,85328.0,0.00013297]
[1743169818124,0.246094,85333.0,85329.0,0.234385]
[1743169818406,0.246094,85333.0,85328.0,0.00013297]
[1743169818407,0.02378037,85334.0,85328.0,0.00013297]
[1743169818527,0.035213,85360.0,85328.0,0.00013297]
[1743169818528,0.0832,85357.0,85339.0,0.011717]
[1743169818738,0.0832,85357.0,85328.0,0.00013297]
[1743169818739,0.246051,85348.0,85340.0,0.151277]
[1743169818960,0.23434,85346.0,85341.0,0.373913]
[1743169819163,0.234346,85344.0,85341.0,0.373913]
[1743169819369,0.011717,85346.0,85341.0,0.373913]
[1743169819594,0.234345,85344.0,85341.0,0.13956]
[1743169820160,0.001,85346.0,85341.0,0.13956]
[1743169820372,0.246067,85344.0,85341.0,0.13956]
[1743169820584,0.002,85346.0,85341.0,0.151277]
[1743169820784,0.002,85346.0,85344.0,0.246061]
[1743169821019,0.02335078,85346.0,85344.0,0.246061]
[1743169821235,0.02335078,85346.0,85345.0,0.234342]
[1743169821459,0.3,85359.0,85355.0,0.011715]
[1743169821669,0.234326,85351.0,85346.0,0.23434]
[1743169821876,0.012717,85344.0,85336.0,0.011718]
[1743169822078,0.012717,85344.0,85338.0,0.011718]
[1743169822281,0.234343,85345.0,85341.0,0.234353]
[1743169822661,0.234351,85342.0,85341.0,0.00013297]
[1743169822863,0.234343,85345.0,85342.0,0.13956]
[1743169823064,0.23534,85346.0,85342.0,0.13956]
[1743169823248,0.234343,85345.0,85342.0,0.13956]
[1743169823467,0.23534,85346.0,85341.0,0.00013297]
[1743169823468,0.234348,85343.0,85341.0,0.00013297]
[1743169823636,0.3631784,85342.0,85341.0,0.00013297]
[1743169823833,0.36032564,85342.0,85341.0,0.00013297]
[1743169825191,0.36232564,85342.0,85341.0,0.00013297]
[1743169825636,0.34860864,85342.0,85341.0,0.00013297]
[1743169825788,0.246068,85342.0,85341.0,0.00013297]
[1743169825992,0.36332564,85342.0,85341.0,0.00013297]
[1743169826177,0.41605424,85342.0,85341.0,0.00013297]
[1743169826375,0.36332564,85342.0,85341.0,0.00013297]
[1743169826597,0.36532564,85342.0,85341.0,0.00013297]
[1743169826755,0.36332564,85342.0,85341.0,0.00013297]
[1743169827160,0.36632564,85342.0,85341.0,0.00013297]
[1743169829534,0.66632564,85342.0,85341.0,0.00013297]
[1743169829714,0.87692413,85342.0,85341.0,0.00013297]
[1743169829915,0.87726253,85342.0,85341.0,0.00013297]
[1743169830216,0.87426253,85342.0,85341.0,0.00013297]
[1743169830441,0.74246404,85342.0,85341.0,0.00013297]
[1743169830644,0.74946404,85342.0,85341.0,0.00013297]
[1743169831046,0.74646404,85342.0,85341.0,0.00013297]
[1743169831590,0.75146404,85342.0,85341.0,0.00013297]
[1743169834536,0.76600489,85342.0,85341.0,0.00013297]
[1743169834740,0.88026253,85342.0,85341.0,0.00013297]
[1743169834965,1.34940211,85342.0,85341.0,9.7e-07]
[1743169835511,1.34440211,85342.0,85341.0,9.7e-07]
[1743169835710,1.23014447,85342.0,85341.0,9.7e-07]
[1743169836322,1.22614447,85342.0,85341.0,9.7e-07]
[1743169836518,1.22114447,85342.0,85341.0,9.7e-07]
[1743169836726,1.22614447,85342.0,85341.0,9.7e-07]
[1743169836922,1.23614447,85342.0,85341.0,9.7e-07]
[1743169837122,1.35040211,85342.0,85341.0,9.7e-07]
[1743169839715,1.34540211,85342.0,85341.0,9.7e-07]
[1743169840363,1.38062311,85342.0,85341.0,9.7e-07]
[1743169840571,1.25182462,85342.0,85341.0,9.7e-07]
[1743169840770,0.87000362,85342.0,85341.0,9.7e-07]
[1743169840993,1.17000362,85342.0,85341.0,9.7e-07]
[1743169841576,0.36566404,85342.0,85341.0,9.7e-07]
[1743169842377,0.0053384,85342.0,85341.0,9.7e-07]
[1743169842603,0.0053384,85342.0,85341.0,0.23435397]
[1743169842763,0.0053384,85342.0,85341.0,9.7e-07]
[1743169842969,0.0103384,85342.0,85341.0,9.7e-07]
[1743169843300,0.2396894,85342.0,85341.0,9.7e-07]
[1743169843503,0.0053384,85342.0,85341.0,9.7e-07]
[1743169843831,0.0003384,85342.0,85341.0,0.13956097]
[1743169844046,0.0073384,85342.0,85341.0,0.13956097]
[1743169844197,0.2416894,85342.0,85341.0,0.13956097]
[1743169844408,0.2376894,85342.0,85341.0,0.13956097]
[1743169844704,0.26314514,85342.0,85341.0,9.7e-07]
[1743169844909,0.39011978,85342.0,85341.0,9.7e-07]
[1743169845111,0.39111978,85342.0,85341.0,9.7e-07]
[1743169845509,0.36266404,85342.0,85341.0,9.7e-07]
[1743169845937,0.66266404,85342.0,85341.0,9.7e-07]
[1743169846143,0.66166404,85342.0,85341.0,9.7e-07]
[1743169846940,0.66066404,85342.0,85341.0,9.7e-07]
[1743169847177,0.66366404,85342.0,85341.0,9.7e-07]
[1743169847417,0.66666404,85342.0,85341.0,9.7e-07]
[1743169847841,0.3063384,85342.0,85341.0,9.7e-07]
[1743169848016,0.5524064,85342.0,85341.0,9.7e-07]
[1743169848217,0.2524064,85342.0,85341.0,9.7e-07]
[1743169848430,0.10656844,85342.0,85341.0,9.7e-07]
[1743169848600,0.0063384,85342.0,85341.0,9.7e-07]
[1743169849171,0.0033384,85342.0,85341.0,9.7e-07]
[1743169849293,0.2376894,85342.0,85341.0,9.7e-07]
[1743169849489,0.2514064,85342.0,85341.0,0.13956097]
[1743169849957,0.2464064,85342.0,85341.0,0.13956097]
[1743169850142,0.2474064,85342.0,85341.0,0.13956097]
[1743169850842,0.2474064,85342.0,85341.0,9.7e-07]
[1743169851001,0.36166404,85342.0,85341.0,9.7e-07]
[1743169852220,0.36066404,85342.0,85341.0,9.7e-07]
[1743169852414,0.66066404,85342.0,85341.0,9.7e-07]
[1743169852614,1.09474447,85342.0,85341.0,9.7e-07]
[1743169852864,1.17394447,85342.0,85341.0,9.7e-07]
[1743169853047,1.28820211,85342.0,85341.0,9.7e-07]
[1743169853247,1.28920211,85342.0,85341.0,9.7e-07]
[1743169853442,1.28620211,85342.0,85341.0,9.7e-07]
[1743169853891,1.29220211,85342.0,85341.0,9.7e-07]
[1743169854140,1.29420211,85342.0,85341.0,9.7e-07]
[1743169854385,1.29920211,85342.0,85341.0,9.7e-07]
[1743169855051,1.29920211,85342.0,85326.0,0.0001692]
[1743169855052,0.546111,85327.0,85326.0,0.0001692]
[1743169855269,1.1716481,85327.0,85326.0,0.00030223]
[1743169855468,1.1716481,85327.0,85326.0,2.3e-07]
[1743169855623,1.2229481,85327.0,85326.0,2.3e-07]
[1743169856023,1.2179481,85327.0,85326.0,2.3e-07]
[1743169856226,1.16583284,85327.0,85326.0,2.3e-07]
[1743169856403,1.07790725,85327.0,85326.0,2.3e-07]
[1743169856603,1.07990725,85327.0,85326.0,2.3e-07]
[1743169856806,0.66636864,85327.0,85326.0,2.3e-07]
[1743169857056,0.66936864,85327.0,85326.0,2.3e-07]
[1743169857459,0.66936864,85327.0,85326.0,0.13952023]
[1743169857740,0.009,85327.0,85326.0,0.38563423]
[1743169857933,0.004,85327.0,85326.0,0.38563423]
[1743169858305,0.005,85327.0,85326.0,0.38563423]
[1743169858684,0.001,85327.0,85326.0,0.38563423]
[1743169859343,0.003,85327.0,85326.0,0.43203423]
[1743169859555,0.002,85327.0,85326.0,0.43203423]
[1743169859845,0.003,85327.0,85326.0,0.54629187]
[1743169860089,0.10467817,85341.0,85340.0,0.234356]
[1743169860324,0.10467817,85341.0,85336.0,0.011718]
[1743169860541,0.10467817,85341.0,85338.0,0.23436]
[1743169860995,0.11639517,85341.0,85332.0,0.011718]
[1743169861201,0.11639517,85341.0,85337.0,0.234363]
[1743169861465,0.10467817,85341.0,85340.0,0.011717]
[1743169862173,0.10467817,85341.0,85332.0,0.011718]
[1743169862307,0.10467817,85341.0,85339.0,0.234359]
[1743169862511,0.33903217,85341.0,85338.0,0.234361]
[1743169862932,0.10467817,85341.0,85339.0,0.234359]
[1743169863131,0.011717,85339.0,85333.0,0.234373]
[1743169863397,0.10467817,85341.0,85338.0,0.234362]
[1743169863604,0.10467817,85341.0,85340.0,0.011717]
[1743169864029,0.0003384,85342.0,85341.0,0.24607]
[1743169864235,0.0003384,85342.0,85341.0,0.38559]
[1743169864408,0.0003384,85342.0,85341.0,1.05756764]
[1743169864809,0.0003384,85342.0,85341.0,0.55772]
[1743169865010,0.0003384,85342.0,85341.0,0.708957]
[1743169865215,0.0003384,85342.0,85341.0,0.69724]
[1743169865418,0.0120554,85342.0,85341.0,0.13952]
[1743169865614,0.0003384,85342.0,85341.0,0.13952]
[1743169865814,0.0120554,85342.0,85341.0,0.13952]
[1743169866704,0.0130554,85342.0,85341.0,0.13952]
[1743169866901,0.246076,85339.0,85338.0,0.0001691]
[1743169867129,0.36033364,85339.0,85338.0,0.0001691]
[1743169868898,0.66033364,85339.0,85338.0,0.0001691]
[1743169869098,0.66133364,85339.0,85338.0,0.0001691]
[1743169869718,0.66033364,85339.0,85338.0,0.0001691]
[1743169869966,0.66133364,85339.0,85338.0,0.0001691]
[1743169870252,0.003,85339.0,85338.0,0.0118871]
[1743169870625,0.003,85339.0,85338.0,0.0001691]
[1743169870824,0.003,85339.0,85338.0,0.0118871]
[1743169871228,0.003,85339.0,85338.0,0.2462491]
[1743169872002,0.0003384,85342.0,85338.0,0.2462491]
[1743169872130,0.0003384,85342.0,85341.0,0.24607]
[1743169872807,0.0003384,85342.0,85341.0,0.13948]
[1743169873010,0.0003384,85342.0,85341.0,0.373833]
[1743169873238,0.0003384,85342.0,85341.0,0.13948]
[1743169873368,0.0003384,85342.0,85341.0,0.374833]
[1743169873766,0.0003384,85342.0,85341.0,0.38655]
[1743169873966,0.2464064,85342.0,85341.0,0.14048]
[1743169874393,0.2346894,85342.0,85341.0,0.14048]
[1743169874597,0.2464064,85342.0,85341.0,0.14048]
[1743169874999,0.2464064,85342.0,85341.0,0.13948]
[1743169875430,0.0003384,85342.0,85341.0,0.38655]
[1743169875631,0.0003384,85342.0,85341.0,0.38555]
[1743169876168,0.0013384,85342.0,85341.0,0.38555]
[1743169876442,0.0033384,85342.0,85341.0,0.49980764]
[1743169876656,0.0023384,85342.0,85341.0,0.49980764]
[1743169876819,0.0003384,85342.0,85341.0,0.49980764]
[1743169876999,0.0003384,85342.0,85341.0,0.50080764]
[1743169878817,0.0003384,85342.0,85341.0,0.49980764]
[1743169879015,0.0003384,85342.0,85341.0,0.50080764]
[1743169879424,0.0003384,85342.0,85341.0,0.38655]
[1743169879624,0.0003384,85342.0,85341.0,0.24707]
[1743169879868,0.0003384,85342.0,85341.0,0.38655]
[1743169880066,0.0003384,85342.0,85341.0,0.001]
[1743169880067,0.2464064,85342.0,85341.0,0.001]
[1743169880269,0.36066404,85342.0,85341.0,0.001]
[1743169881303,0.44146404,85342.0,85341.0,0.001]
[1743169881888,0.246076,85339.0,85338.0,0.0001691]
[1743169882098,0.36033364,85339.0,85338.0,0.0001691]
[1743169882447,0.0140554,85342.0,85338.0,0.0001691]
[1743169882795,0.246076,85339.0,85338.0,0.0001691]
[1743169884469,0.76914974,85339.0,85338.0,1e-07]
[1743169884672,0.76914974,85339.0,85301.0,0.0497]
[1743169884673,0.246184,85302.0,85301.0,0.002]
[1743169884845,0.66044164,85302.0,85301.0,0.002]
[1743169885221,0.74244164,85302.0,85301.0,0.00213314]
[1743169885390,0.86139728,85302.0,85301.0,0.00213314]
[1743169886206,0.66513964,85302.0,85301.0,0.00213314]
[1743169886403,0.66513964,85302.0,85301.0,0.00313314]
[1743169886611,0.66513964,85302.0,85301.0,0.00213314]
[1743169886847,0.66613964,85302.0,85301.0,0.00213314]
[1743169887017,0.12095564,85302.0,85301.0,0.00213314]
[1743169887227,0.12798064,85302.0,85301.0,0.00213314]
[1743169887797,0.16422702,85302.0,85301.0,0.00213314]
[1743169888012,0.46137426,85302.0,85301.0,0.00213314]
[1743169889939,0.42798064,85302.0,85301.0,0.00213314]
[1743169891679,0.49052149,85302.0,85301.0,0.00016924]
[1743169892472,0.48952149,85302.0,85301.0,0.00016924]
[1743169892751,0.49352149,85302.0,85301.0,0.00016924]
[1743169892952,0.60777913,85302.0,85301.0,0.00016924]
[1743169893586,0.61277913,85302.0,85301.0,0.00016924]
[1743169894946,0.60777913,85302.0,85301.0,0.00016924]
[1743169895449,0.60777913,85302.0,85290.0,0.0001691]
[1743169895450,0.546215,85291.0,85290.0,7.4e-07]
[1743169895646,0.73080729,85291.0,85290.0,7.4e-07]
[1743169895860,0.73080729,85291.0,85290.0,0.00044231]
[1743169896231,0.66047264,85291.0,85290.0,0.00044231]
[1743169896806,0.66547264,85291.0,85290.0,0.00044231]
[1743169897055,0.66847264,85291.0,85290.0,0.00044231]
[1743169897356,0.68301349,85291.0,85290.0,0.00044231]
[1743169898537,0.68001349,85291.0,85290.0,0.00044231]
[1743169898740,0.66547264,85291.0,85290.0,0.00044231]
[1743169898943,0.72320394,85291.0,85290.0,0.00044231]
[1743169899496,0.72320394,85291.0,85288.0,4.1e-07]
[1743169899497,0.54622,85289.0,85288.0,4.1e-07]
[1743169899671,0.67501849,85289.0,85288.0,4.1e-07]
[1743169899912,1.1755571,85289.0,85288.0,4.1e-07]
[1743169900113,1.28981474,85289.0,85288.0,4.1e-07]
[1743169901394,1.29481474,85289.0,85288.0,4.1e-07]
[1743169901551,1.33629301,85289.0,85288.0,4.1e-07]
[1743169902203,1.29981474,85289.0,85288.0,4.1e-07]
[1743169902725,1.30481474,85289.0,85288.0,4.1e-07]
[1743169903040,0.62717585,85275.0,85274.0,1e-08]
[1743169903340,0.56081085,85272.0,85271.0,1e-08]
[1743169903534,0.68006849,85272.0,85271.0,1e-08]
[1743169903790,0.67506849,85272.0,85271.0,1e-08]
[1743169904013,0.66052764,85272.0,85271.0,1e-08]
[1743169904292,0.78932613,85272.0,85271.0,1e-08]
[1743169906042,0.79432613,85272.0,85271.0,1e-08]
[1743169906251,0.68976849,85272.0,85271.0,1e-08]
[1743169907515,0.67522764,85272.0,85271.0,1e-08]
[1743169907894,0.68976849,85272.0,85271.0,1e-08]
[1743169908034,0.71326847,85272.0,85271.0,1e-08]
[1743169908234,0.82752611,85272.0,85271.0,1e-08]
[1743169908648,1.23506472,85272.0,85271.0,1e-08]
[1743169908869,1.24506472,85272.0,85271.0,1e-08]
[1743169909279,1.24006472,85272.0,85271.0,1e-08]
[1743169909476,1.24506472,85272.0,85271.0,1e-08]
[1743169910342,1.24006472,85272.0,85271.0,1e-08]
[1743169910545,1.24006472,85272.0,85260.0,0.0001691]
[1743169910546,0.627701,85261.0,85260.0,0.0001691]
[1743169910766,0.74195864,85261.0,85260.0,0.0001691]
[1743169910939,0.66055864,85261.0,85260.0,0.0001691]
[1743169911299,0.67509949,85261.0,85260.0,0.0001691]
[1743169911831,0.68612295,85261.0,85260.0,0.0001691]
[1743169912215,0.85032238,85261.0,85260.0,0.0001691]
[1743169912360,1.35546099,85261.0,85260.0,1e-07]
[1743169912766,1.20044798,85261.0,85260.0,1e-07]
[1743169917256,0.56085685,85256.0,85255.0,2e-07]
[1743169917388,1.0926531,85256.0,85255.0,2e-07]
[1743169919226,1.0976531,85256.0,85255.0,2e-07]
[1743169919529,1.16706737,85256.0,85255.0,2e-07]
[1743169920477,1.16206737,85256.0,85255.0,2e-07]
[1743169921084,1.16706737,85256.0,85255.0,2e-07]
[1743169921285,1.15252652,85256.0,85255.0,2e-07]
[1743169921505,1.08811225,85256.0,85255.0,2e-07]
[1743169921706,1.08311225,85256.0,85255.0,2e-07]
[1743169921969,0.53679625,85256.0,85255.0,2e-07]
[1743169922413,0.67385461,85256.0,85255.0,2e-07]
[1743169922696,0.234615,85246.0,85245.0,0.0128232]
[1743169922891,0.36060264,85246.0,85245.0,0.0128232]
[1743169923579,0.2499998,85250.0,85246.0,0.1278]
[1743169923739,0.2499998,85250.0,85249.0,0.246336]
[1743169925024,0.2509998,85250.0,85249.0,0.246336]
[1743169925429,0.01173,85248.0,85246.0,0.0462]
[1743169925670,0.234615,85246.0,85245.0,0.0128232]
[1743169925900,0.34887264,85246.0,85245.0,0.0128232]
[1743169926084,0.36060264,85246.0,85245.0,0.0128232]
[1743169926321,0.11425764,85246.0,85245.0,0.0128232]
[1743169926606,0.2509998,85250.0,85248.0,0.234608]
[1743169927033,0.246345,85246.0,85245.0,0.0128232]
[1743169927562,0.36060264,85246.0,85245.0,0.0128232]
[1743169927760,0.36060264,85246.0,85245.0,0.0129924]
[1743169928006,0.234612,85247.0,85245.0,0.0129924]
[1743169928223,0.26241893,85250.0,85245.0,0.0129924]
[1743169928396,0.234615,85246.0,85245.0,0.0129924]
[1743169928626,0.248345,85246.0,85245.0,0.0129924]
[1743169928840,0.251345,85246.0,85245.0,0.0129924]
[1743169929155,0.249345,85246.0,85245.0,0.0129924]
[1743169929354,0.246345,85246.0,85245.0,0.0129924]
[1743169929500,0.248345,85246.0,85245.0,0.0129924]
[1743169930031,0.36260264,85246.0,85245.0,0.0129924]
[1743169930635,0.47686028,85246.0,85245.0,0.0129924]
[1743169930875,0.36360264,85246.0,85245.0,0.0129924]
[1743169931368,0.36260264,85246.0,85245.0,0.0129924]
[1743169931750,0.35387264,85246.0,85245.0,0.0129924]
[1743169931953,0.36560264,85246.0,85245.0,0.0129924]
[1743169932319,0.35387264,85246.0,85245.0,0.0129924]
[1743169932522,0.251345,85246.0,85245.0,0.0129924]
[1743169932740,0.36560264,85246.0,85245.0,0.0129924]
[1743169932976,0.36260264,85246.0,85245.0,0.0129924]
[1743169933176,0.36460264,85246.0,85245.0,0.0129924]
[1743169933928,0.36260264,85246.0,85245.0,0.0129924]
[1743169934368,0.36460264,85246.0,85245.0,0.0129924]
[1743169934524,0.36060264,85246.0,85245.0,0.0129924]
[1743169934762,0.47486028,85246.0,85245.0,0.0129924]
[1743169934965,0.47986028,85246.0,85245.0,0.0129924]
[1743169935368,0.47686028,85246.0,85245.0,0.0129924]
[1743169935585,0.47986028,85246.0,85245.0,0.0129924]
[1743169935818,0.47786028,85246.0,85245.0,0.0129924]
[1743169936019,0.47786028,85246.0,85240.0,0.0001691]
[1743169936020,0.234628,85241.0,85240.0,5e-07]
[1743169936222,0.011731,85242.0,85222.0,0.0002]
[1743169936223,0.546411,85223.0,85222.0,0.0002]
[1743169936400,0.66066864,85223.0,85222.0,0.0002]
[1743169936779,0.546411,85223.0,85222.0,0.0002]
[1743169937062,0.66066864,85223.0,85222.0,0.0002]
[1743169937767,0.66110988,85223.0,85222.0,0.0002]
[1743169937967,0.77536752,85223.0,85222.0,0.0002]
[1743169938381,0.77536752,85223.0,85211.0,0.002]
[1743169938382,0.546431,85216.0,85215.0,1e-07]
[1743169938615,0.66068864,85216.0,85215.0,1e-07]
[1743169939956,0.234681,85222.0,85216.0,0.011734]
[1743169940175,0.011734,85216.0,85215.0,1e-07]
[1743169940956,0.015734,85216.0,85215.0,1e-07]
[1743169941190,0.011734,85216.0,85215.0,1e-07]
[1743169941400,0.54734009,85216.0,85215.0,1e-07]
[1743169941667,0.54648733,85216.0,85215.0,1e-07]
[1743169941867,0.54148733,85216.0,85215.0,1e-07]
[1743169942179,0.54448733,85216.0,85215.0,1e-07]
[1743169942414,0.77918433,85216.0,85215.0,1e-07]
[1743169942611,0.77618433,85216.0,85215.0,1e-07]
[1743169943195,0.77918433,85216.0,85215.0,1e-07]
[1743169943387,0.66568864,85216.0,85215.0,1e-07]
[1743169944318,0.67068864,85216.0,85215.0,1e-07]
[1743169944536,0.556431,85216.0,85215.0,1e-07]
[1743169945299,0.67068864,85216.0,85215.0,1e-07]
[1743169945782,0.66068864,85216.0,85215.0,1e-07]
[1743169946119,0.66968864,85216.0,85215.0,1e-07]
[1743169946709,0.234739,85201.0,85198.0,0.13947657]